[Event "44th Chess Olympiad Open 2022"]
[Site "Chennai"]
[Date "2022.08.05"]
[Round "7.63"]
[White "Rongwane, Gomolemo"]
[Black "Vasco Mateus Felizardo Viagei"]
[Result "1-0"]
[WhiteElo "2033"]
[BlackElo "1852"]
[Annotator "NA RC"]
[PlyCount "101"]
[EventDate "2022.??.??"]
[TimeControl "60"]

1. d4 {[%emt 0:00:02]} Nf6 {[%emt 0:00:14]} 2. Nf3 {[%emt 0:00:11]} e6 {
[%emt 0:00:37]} 3. e3 {[%emt 0:01:28]} b6 {[%emt 0:00:47]} 4. Bd3 {[%emt 0:00:
00]} Bb7 {[%emt 0:01:03]} 5. O-O {[%emt 0:00:11]} Be7 {[%emt 0:01:55]} 6. Nbd2
{[%emt 0:00:12]} c5 {[%emt 0:02:39]} 7. b3 {[%emt 0:00:21]} cxd4 {[%emt 0:00:
00]} 8. exd4 {[%emt 0:00:07]} O-O {[%emt 0:00:08]} 9. Bb2 {[%emt 0:00:10]} d6 {
[%emt 0:00:13]} 10. Re1 {[%emt 0:01:05]} Nbd7 {[%emt 0:00:45]} 11. c4 {[%emt 0:
00:00]} Re8 {[%emt 0:00:52]} 12. Qc2 {[%emt 0:01:56]} Rc8 {[%emt 0:02:19]} 13.
Rad1 {[%emt 0:02:03]} Qc7 {[%emt 0:01:49]} 14. Qb1 {[%emt 0:04:55]} Bf8 {
[%emt 0:02:15]} 15. Re3 {[%emt 0:02:03]} g6 {[%emt 0:03:08]} 16. Qa1 {[%emt 0:
00:00]} Bh6 {[%emt 0:01:23]} 17. Ree1 {[%emt 0:00:42]} Nh5 {[%emt 0:02:37]} 18.
Bf1 {[%emt 0:04:05]} Bg7 {[%emt 0:01:31]} 19. g3 {[%emt 0:00:20]} Qb8 {[%emt 0:
00:00]} 20. Bh3 {[%emt 0:03:11]} Rcd8 {[%emt 0:00:16]} 21. Re2 {[%emt 0:05:26]}
Qa8 {[%emt 0:03:46]} 22. Re3 {[%emt 0:08:35]} f5 {[%emt 0:06:55]} 23. Bg2 {
[%emt 0:05:33]} Bh6 {[%emt 0:05:34]} 24. Rd3 {[%emt 0:01:58]} e5 {[%emt 0:00:
00]} 25. dxe5 {[%emt 0:16:33]} Nc5 {[%emt 0:01:41]} 26. Rd5 {[%emt 0:01:55]}
Bxd5 {[%emt 0:00:48]} 27. cxd5 {[%emt 0:00:15]} dxe5 {[%emt 0:00:20]} 28. Nxe5
{[%emt 0:00:23]} Bg7 {[%emt 0:02:06]} 29. b4 {[%emt 0:02:39]} Bxe5 {[%emt 0:00:
00]} 30. bxc5 {[%emt 0:00:29]} Bxb2 {[%emt 0:06:40]} 31. Qxb2 {[%emt 0:00:10]}
Rxd5 {[%emt 0:00:35]} 32. Qb3 {[%emt 0:00:25]} Red8 {[%emt 0:00:08]} 33. Nf1 {
[%emt 0:00:17]} Nf6 {[%emt 0:03:51]} 34. Ne3 {[%emt 0:00:34]} Kg7 {[%emt 0:00:
00]} 35. Nxd5 {[%emt 0:00:41]} Nxd5 {[%emt 0:12:07]} 36. Rxd5 {[%emt 0:02:36]}
Rxd5 {[%emt 0:00:48]} 37. Qxd5 {[%emt 0:01:02]} Qxd5 {[%emt 0:01:31]} 38. Bxd5
{[%emt 0:00:08]} bxc5 {[%emt 0:00:05]} 39. f4 {[%emt 0:00:11]} Kf6 {[%emt 0:00:
00]} 40. Kf2 {[%emt 0:00:47]} Ke7 {[%emt 0:01:30]} 41. Ke3 {[%emt 0:30:11]} Kd6
{[%emt 0:30:51]} 42. Bg8 {[%emt 0:00:10]} Ke7 {[%emt 0:01:28]} 43. Kd3 {
[%emt 0:00:34]} h6 {[%emt 0:00:47]} 44. Kc4 {[%emt 0:00:15]} Kf6 {[%emt 0:00:
00]} 45. a4 {[%emt 0:00:27]} g5 {[%emt 0:00:22]} 46. Kxc5 {[%emt 0:00:11]} gxf4
{[%emt 0:00:15]} 47. gxf4 {[%emt 0:00:08]} Kg6 {[%emt 0:00:09]} 48. Be6 {
[%emt 0:00:22]} Kh5 {[%emt 0:01:47]} 49. Bxf5 {[%emt 0:00:27]} Kh4 {[%emt 0:00:
00]} 50. Kd6 {[%emt 0:00:29]} a5 {[%emt 0:01:21]} 51. Bg6 {[%emt 0:00:13]} 1-0

[Event "44th Chess Olympiad Open 2022"]
[Site "Chennai"]
[Date "2022.08.05"]
[Round "7.63"]
[White "Sabure, Bojosi"]
[Black "Jamal, Hamid Harmon Gulamo"]
[Result "1-0"]
[WhiteElo "1966"]
[BlackElo "1617"]
[Annotator "NA RC"]
[PlyCount "67"]
[EventDate "2022.??.??"]
[TimeControl "60"]

1. e4 {[%emt 0:00:13]} c5 {[%emt 0:00:05]} 2. b4 {[%emt 0:00:34]} cxb4 {
[%emt 0:01:38]} 3. d4 {[%emt 0:00:12]} d5 {[%emt 0:05:05]} 4. e5 {[%emt 0:00:
00]} e6 {[%emt 0:00:19]} 5. Nf3 {[%emt 0:00:47]} Nc6 {[%emt 0:01:01]} 6. a3 {
[%emt 0:00:40]} bxa3 {[%emt 0:04:35]} 7. c3 {[%emt 0:00:54]} f6 {[%emt 0:04:09]
} 8. Bd3 {[%emt 0:02:42]} Qc7 {[%emt 0:03:03]} 9. Qe2 {[%emt 0:06:23]} Na5 {
[%emt 0:03:30]} 10. Ra2 {[%emt 0:05:33]} Nc4 {[%emt 0:04:58]} 11. O-O {[%emt 0:
00:00]} b5 {[%emt 0:01:20]} 12. Nxa3 {[%emt 0:05:55]} Bd7 {[%emt 0:01:54]} 13.
exf6 {[%emt 0:04:27]} Nxf6 {[%emt 0:05:08]} 14. Bf5 {[%emt 0:01:28]} Bxa3 {
[%emt 0:03:17]} 15. Bxa3 {[%emt 0:01:28]} Nxa3 {[%emt 0:00:32]} 16. Bxe6 {
[%emt 0:00:28]} Kf8 {[%emt 0:06:46]} 17. Bxd7 {[%emt 0:01:06]} Qxc3 {[%emt 0:
00:00]} 18. Qe6 {[%emt 0:01:12]} Qb4 {[%emt 0:02:50]} 19. Ne5 {[%emt 0:01:29]}
Qe7 {[%emt 0:01:03]} 20. Rxa3 {[%emt 0:00:43]} Qxe6 {[%emt 0:01:14]} 21. Bxe6 {
[%emt 0:00:11]} Ke7 {[%emt 0:04:30]} 22. Ra6 {[%emt 0:00:21]} Rhb8 {[%emt 0:00:
00]} 23. Nc6+ {[%emt 0:01:17]} Kxe6 {[%emt 0:00:57]} 24. Nxb8+ {[%emt 0:00:11]}
Kf5 {[%emt 0:02:34]} 25. Nc6 {[%emt 0:00:18]} Ne4 {[%emt 0:02:01]} 26. Rxa7 {
[%emt 0:00:21]} Rxa7 {[%emt 0:00:35]} 27. Nxa7 {[%emt 0:00:08]} b4 {[%emt 0:00:
00]} 28. Rb1 {[%emt 0:00:12]} g5 {[%emt 0:06:23]} 29. f3 {[%emt 0:00:19]} Nc3 {
[%emt 0:00:40]} 30. Rxb4 {[%emt 0:00:15]} Kf4 {[%emt 0:00:35]} 31. Kf2 {
[%emt 0:00:26]} Nd1+ {[%emt 0:00:47]} 32. Ke2 {[%emt 0:00:11]} Nc3+ {[%emt 0:
00:00]} 33. Kd2 {[%emt 0:00:14]} Na2 {[%emt 0:01:35]} 34. Rb3 {[%emt 0:00:10]}
1-0

[Event "44th Chess Olympiad Open 2022"]
[Site "Chennai"]
[Date "2022.08.05"]
[Round "7.63"]
[White "Napoleao, Lourenco"]
[Black "Oratile, Kgotlane"]
[Result "1-0"]
[WhiteElo "1778"]
[BlackElo "2024"]
[Annotator "NA RC"]
[PlyCount "103"]
[EventDate "2022.??.??"]
[TimeControl "60"]

1. e4 {[%emt 0:00:05]} c5 {[%emt 0:00:18]} 2. Nf3 {[%emt 0:00:24]} g6 {[%emt 0:
00:00]} 3. d4 {[%emt 0:00:31]} cxd4 {[%emt 0:00:07]} 4. Qxd4 {[%emt 0:00:09]}
Nf6 {[%emt 0:00:08]} 5. e5 {[%emt 0:00:27]} Nc6 {[%emt 0:00:14]} 6. Qa4 {
[%emt 0:00:16]} Nd5 {[%emt 0:00:09]} 7. Qb3 {[%emt 0:01:01]} Nc7 {[%emt 0:00:
00]} 8. Nc3 {[%emt 0:05:05]} Bg7 {[%emt 0:00:07]} 9. Bf4 {[%emt 0:00:09]} Ne6 {
[%emt 0:01:23]} 10. Bg3 {[%emt 0:00:08]} Ned4 {[%emt 0:00:35]} 11. Nxd4 {
[%emt 0:00:22]} Nxd4 {[%emt 0:00:07]} 12. Qa4 {[%emt 0:00:17]} Nc6 {[%emt 0:00:
00]} 13. f4 {[%emt 0:02:08]} O-O {[%emt 0:00:30]} 14. O-O-O {[%emt 0:00:42]} a6
{[%emt 0:01:44]} 15. h4 {[%emt 0:02:27]} b5 {[%emt 0:08:55]} 16. Qe4 {[%emt 0:
00:00]} Qa5 {[%emt 0:10:21]} 17. Kb1 {[%emt 0:00:44]} d5 {[%emt 0:12:34]} 18.
Nxd5 {[%emt 0:10:03]} Be6 {[%emt 0:06:13]} 19. Be1 {[%emt 0:04:32]} Bxd5 {
[%emt 0:08:22]} 20. Rxd5 {[%emt 0:01:09]} Qb6 {[%emt 0:00:11]} 21. h5 {[%emt 0:
00:00]} Rad8 {[%emt 0:00:51]} 22. hxg6 {[%emt 0:02:32]} hxg6 {[%emt 0:00:19]}
23. Bd3 {[%emt 0:01:37]} Rxd5 {[%emt 0:00:56]} 24. Qxd5 {[%emt 0:00:01]} Rd8 {
[%emt 0:00:45]} 25. Qe4 {[%emt 0:00:42]} Qc5 {[%emt 0:12:13]} 26. Rf1 {[%emt 0:
00:00]} Qd5 {[%emt 0:09:36]} 27. Bh4 {[%emt 0:04:16]} Qe6 {[%emt 0:01:03]} 28.
Bf2 {[%emt 0:04:20]} Na5 {[%emt 0:12:09]} 29. b3 {[%emt 0:07:57]} Nc6 {[%emt 0:
00:00]} 30. Bb6 {[%emt 0:04:33]} Rc8 {[%emt 0:02:52]} 31. Be3 {[%emt 0:06:45]}
f5 {[%emt 0:09:42]} 32. Qf3 {[%emt 0:01:09]} Rd8 {[%emt 0:01:07]} 33. Bd2 {
[%emt 0:03:09]} Nd4 {[%emt 0:00:25]} 34. Qf2 {[%emt 0:06:26]} Rd7 {[%emt 0:00:
00]} 35. Bc3 {[%emt 0:00:23]} Nc6 {[%emt 0:00:13]} 36. g4 {[%emt 0:01:54]} Qd5
{[%emt 0:00:46]} 37. gxf5 {[%emt 0:00:42]} gxf5 {[%emt 0:00:02]} 38. Bxf5 {
[%emt 0:00:26]} e6 {[%emt 0:00:01]} 39. Bd3 {[%emt 0:00:51]} Rf7 {[%emt 0:00:
00]} 40. Bg6 {[%emt 0:01:45]} Rd7 {[%emt 0:00:07]} 41. Re1 {[%emt 0:30:46]} Rc7
{[%emt 0:03:01]} 42. Be4 {[%emt 0:00:00]} Qd7 {[%emt 0:00:49]} 43. Bxc6 {
[%emt 0:00:00]} Qxc6 {[%emt 0:00:34]} 44. Bb2 {[%emt 0:00:00]} a5 {[%emt 0:00:
00]} 45. f5 {[%emt 0:00:00]} exf5 {[%emt 0:01:48]} 46. Qxf5 {[%emt 0:00:00]}
Rf7 {[%emt 0:00:08]} 47. Qd3 {[%emt 0:00:00]} Rd7 {[%emt 0:01:08]} 48. Qe2 {
[%emt 0:00:00]} Bh6 {[%emt 0:02:36]} 49. e6 {[%emt 0:00:00]} Rd2 {[%emt 0:00:
00]} 50. Qg4+ {[%emt 0:00:00]} Kf8 {[%emt 0:00:11]} 51. e7+ {[%emt 0:00:00]}
Kf7 {[%emt 0:00:41]} 52. e8=Q+ {[%emt 0:00:00]} 1-0

[Event "44th Chess Olympiad Open 2022"]
[Site "Chennai"]
[Date "2022.08.05"]
[Round "7.64"]
[White "Myat Thiri Aung Kyaw"]
[Black "Alhejab, Meshal"]
[Result "1-0"]
[WhiteElo "2120"]
[BlackElo "1732"]
[Annotator "NA RC"]
[PlyCount "93"]
[EventDate "2022.??.??"]
[TimeControl "60"]

1. e4 {[%emt 0:00:44]} c5 {[%emt 0:00:05]} 2. Nf3 {[%emt 0:00:17]} Nc6 {
[%emt 0:00:04]} 3. Nc3 {[%emt 0:00:48]} e5 {[%emt 0:00:43]} 4. Bc4 {[%emt 0:00:
00]} d6 {[%emt 0:01:25]} 5. a4 {[%emt 0:04:28]} g6 {[%emt 0:01:46]} 6. d3 {
[%emt 0:00:35]} h6 {[%emt 0:07:41]} 7. Nd5 {[%emt 0:07:35]} Bg7 {[%emt 0:02:10]
} 8. Be3 {[%emt 0:01:48]} Nf6 {[%emt 0:00:33]} 9. Nxf6+ {[%emt 0:06:09]} Qxf6 {
[%emt 0:00:42]} 10. Qd2 {[%emt 0:02:30]} Bg4 {[%emt 0:06:24]} 11. Ng1 {[%emt 0:
00:00]} Rc8 {[%emt 0:11:22]} 12. Ne2 {[%emt 0:11:20]} Qd8 {[%emt 0:04:57]} 13.
O-O {[%emt 0:07:15]} Ne7 {[%emt 0:11:11]} 14. f4 {[%emt 0:08:33]} d5 {[%emt 0:
00:00]} 15. exd5 {[%emt 0:03:25]} Nxd5 {[%emt 0:07:31]} 16. fxe5 {[%emt 0:00:
00]} O-O {[%emt 0:03:25]} 17. Nc3 {[%emt 0:09:56]} Nxe3 {[%emt 0:02:10]} 18.
Qxe3 {[%emt 0:00:08]} Qd4 {[%emt 0:14:25]} 19. Qxd4 {[%emt 0:04:07]} cxd4 {
[%emt 0:00:05]} 20. Nd5 {[%emt 0:00:12]} Kh8 {[%emt 0:03:02]} 21. Rae1 {
[%emt 0:03:42]} Be6 {[%emt 0:03:03]} 22. b3 {[%emt 0:07:34]} a6 {[%emt 0:03:39]
} 23. Nb6 {[%emt 0:03:15]} Rc7 {[%emt 0:05:53]} 24. a5 {[%emt 0:01:35]} Re8 {
[%emt 0:01:32]} 25. Bxe6 {[%emt 0:03:33]} Rxe6 {[%emt 0:00:38]} 26. Nc4 {
[%emt 0:00:08]} Rce7 {[%emt 0:01:08]} 27. b4 {[%emt 0:00:37]} Kg8 {[%emt 0:00:
00]} 28. Rf4 {[%emt 0:01:21]} Rd7 {[%emt 0:01:37]} 29. Ree4 {[%emt 0:00:28]}
Bf8 {[%emt 0:01:21]} 30. Rxd4 {[%emt 0:00:41]} Rxd4 {[%emt 0:00:08]} 31. Rxd4 {
[%emt 0:00:02]} Bxb4 {[%emt 0:00:19]} 32. Rd8+ {[%emt 0:02:51]} Kg7 {[%emt 0:
00:00]} 33. Kf2 {[%emt 0:01:02]} Bc3 {[%emt 0:00:56]} 34. Rd7 {[%emt 0:01:16]}
Bxe5 {[%emt 0:00:28]} 35. Rxb7 {[%emt 0:00:13]} Bc3 {[%emt 0:00:47]} 36. Kf3 {
[%emt 0:00:14]} Bd4 {[%emt 0:00:42]} 37. Rd7 {[%emt 0:00:28]} Bc3 {[%emt 0:00:
00]} 38. d4 {[%emt 0:01:16]} Kf6 {[%emt 0:00:42]} 39. Ne5 {[%emt 0:00:49]} Bxa5
{[%emt 0:00:20]} 40. Rxf7+ {[%emt 0:00:04]} Kg5 {[%emt 0:00:07]} 41. Ke4 {
[%emt 0:31:00]} Bc3 {[%emt 0:30:40]} 42. Rf3 {[%emt 0:01:27]} Be1 {[%emt 0:00:
00]} 43. d5 {[%emt 0:00:00]} Re8 {[%emt 0:00:00]} 44. d6 {[%emt 0:00:00]} Ba5 {
[%emt 0:00:00]} 45. Kd5 {[%emt 0:00:00]} Rc8 {[%emt 0:00:00]} 46. c4 {[%emt 0:
00:00]} Rb8 {[%emt 0:00:00]} 47. Nc6 {[%emt 0:00:00]} 1-0

[Event "44th Chess Olympiad Open 2022"]
[Site "Chennai"]
[Date "2022.08.05"]
[Round "7.64"]
[White "Sai Han Thiha"]
[Black "Al-Hajiri, Bader"]
[Result "1-0"]
[WhiteElo "1974"]
[BlackElo "2011"]
[Annotator "NA RC"]
[PlyCount "49"]
[EventDate "2022.??.??"]
[TimeControl "60"]

1. d4 {[%emt 0:00:01]} Nf6 {[%emt 0:01:46]} 2. Bf4 {[%emt 0:00:06]} g6 {
[%emt 0:01:08]} 3. Nf3 {[%emt 0:00:06]} Bg7 {[%emt 0:00:14]} 4. e3 {[%emt 0:00:
00]} O-O {[%emt 0:00:13]} 5. Be2 {[%emt 0:00:06]} d6 {[%emt 0:00:12]} 6. h3 {
[%emt 0:00:20]} Nbd7 {[%emt 0:00:37]} 7. O-O {[%emt 0:00:08]} Re8 {[%emt 0:00:
00]} 8. c4 {[%emt 0:03:32]} c5 {[%emt 0:02:30]} 9. Nc3 {[%emt 0:08:44]} cxd4 {
[%emt 0:02:01]} 10. exd4 {[%emt 0:00:07]} Qa5 {[%emt 0:00:18]} 11. a3 {[%emt 0:
00:00]} Qf5 {[%emt 0:09:15]} 12. Be3 {[%emt 0:17:12]} d5 {[%emt 0:05:33]} 13.
Nb5 {[%emt 0:11:08]} Rd8 {[%emt 0:05:12]} 14. c5 {[%emt 0:15:10]} a6 {[%emt 0:
00:00]} 15. Nc7 {[%emt 0:01:21]} Rb8 {[%emt 0:01:37]} 16. Nh4 {[%emt 0:00:12]}
Qe4 {[%emt 0:00:00]} 17. g4 {[%emt 0:03:51]} Ne5 {[%emt 0:03:53]} 18. Ng2 {
[%emt 0:03:34]} Bxg4 {[%emt 0:17:27]} 19. hxg4 {[%emt 0:03:00]} Nexg4 {[%emt 0:
00:00]} 20. Bf4 {[%emt 0:04:19]} Nh5 {[%emt 0:02:40]} 21. Be3 {[%emt 0:01:43]}
Nxe3 {[%emt 0:05:21]} 22. fxe3 {[%emt 0:07:55]} e5 {[%emt 0:07:43]} 23. Bd3 {
[%emt 0:00:00]} exd4 {[%emt 0:01:26]} 24. Bxe4 {[%emt 0:00:00]} dxe4 {[%emt 0:
00:00]} 25. Qb3 {[%emt 0:00:00]} 1-0

[Event "44th Chess Olympiad Open 2022"]
[Site "Chennai"]
[Date "2022.08.05"]
[Round "7.64"]
[White "Hashem, Khaled"]
[Black "Nay Lin Tun"]
[Result "1-0"]
[WhiteElo "1870"]
[BlackElo "2045"]
[Annotator "NA RC"]
[PlyCount "117"]
[EventDate "2022.??.??"]
[TimeControl "60"]

1. Nf3 {[%emt 0:00:03]} Nf6 {[%emt 0:00:12]} 2. c4 {[%emt 0:00:25]} c5 {
[%emt 0:00:44]} 3. g3 {[%emt 0:00:06]} g6 {[%emt 0:00:13]} 4. Bg2 {[%emt 0:00:
00]} Bg7 {[%emt 0:00:08]} 5. O-O {[%emt 0:00:12]} O-O {[%emt 0:00:54]} 6. Nc3 {
[%emt 0:00:09]} Nc6 {[%emt 0:00:45]} 7. a3 {[%emt 0:00:44]} d5 {[%emt 0:02:12]}
8. cxd5 {[%emt 0:01:19]} Nxd5 {[%emt 0:00:08]} 9. Nxd5 {[%emt 0:07:56]} Qxd5 {
[%emt 0:00:08]} 10. d3 {[%emt 0:00:02]} Qd6 {[%emt 0:11:26]} 11. Qa4 {[%emt 0:
00:00]} Nd4 {[%emt 0:20:46]} 12. Nxd4 {[%emt 0:02:09]} cxd4 {[%emt 0:01:15]}
13. Bd2 {[%emt 0:06:33]} Bg4 {[%emt 0:24:08]} 14. Rfe1 {[%emt 0:03:52]} Qb6 {
[%emt 0:11:33]} 15. Qb4 {[%emt 0:13:06]} Rac8 {[%emt 0:11:55]} 16. h3 {[%emt 0:
00:00]} Be6 {[%emt 0:01:52]} 17. Rac1 {[%emt 0:06:30]} Qxb4 {[%emt 0:04:35]}
18. Bxb4 {[%emt 0:00:28]} Bh6 {[%emt 0:01:12]} 19. f4 {[%emt 0:00:56]} Rfe8 {
[%emt 0:02:48]} 20. h4 {[%emt 0:05:19]} b6 {[%emt 0:01:33]} 21. Bc6 {[%emt 0:
00:00]} Red8 {[%emt 0:01:38]} 22. Bxe7 {[%emt 0:00:33]} Bf8 {[%emt 0:00:20]}
23. Bxd8 {[%emt 0:01:14]} Rxd8 {[%emt 0:00:03]} 24. Bb5 {[%emt 0:13:18]} Bd6 {
[%emt 0:01:19]} 25. Rc2 {[%emt 0:03:12]} a5 {[%emt 0:00:37]} 26. Rb1 {[%emt 0:
00:00]} h6 {[%emt 0:00:30]} 27. b4 {[%emt 0:02:08]} axb4 {[%emt 0:00:15]} 28.
axb4 {[%emt 0:00:02]} g5 {[%emt 0:00:27]} 29. hxg5 {[%emt 0:03:17]} hxg5 {
[%emt 0:00:03]} 30. Rc6 {[%emt 0:00:05]} gxf4 {[%emt 0:00:55]} 31. Bc4 {
[%emt 0:06:01]} Bg4 {[%emt 0:00:45]} 32. gxf4 {[%emt 0:01:56]} Bxe2 {[%emt 0:
00:00]} 33. Kf2 {[%emt 0:00:15]} Bh5 {[%emt 0:00:25]} 34. Rxb6 {[%emt 0:01:48]}
Bxf4 {[%emt 0:00:25]} 35. Rh1 {[%emt 0:00:27]} Be3+ {[%emt 0:00:35]} 36. Kg3 {
[%emt 0:01:45]} Be2 {[%emt 0:00:25]} 37. Re1 {[%emt 0:04:56]} Bh5 {[%emt 0:00:
00]} 38. Rh1 {[%emt 0:00:01]} Be2 {[%emt 0:00:03]} 39. Rh2 {[%emt 0:00:08]} Bd1
{[%emt 0:00:40]} 40. Rg6+ {[%emt 0:02:07]} Kf8 {[%emt 0:00:14]} 41. Rf6 {
[%emt 0:30:22]} Kg7 {[%emt 0:31:16]} 42. Rxf7+ {[%emt 0:03:21]} Kg6 {[%emt 0:
00:00]} 43. Ra2 {[%emt 0:00:00]} Rd6 {[%emt 0:00:00]} 44. b5 {[%emt 0:00:00]}
Kg5 {[%emt 0:04:10]} 45. Ra6 {[%emt 0:00:00]} Rd8 {[%emt 0:00:00]} 46. b6 {
[%emt 0:00:00]} Rh8 {[%emt 0:00:00]} 47. b7 {[%emt 0:00:00]} Bg1 {[%emt 0:00:
00]} 48. Rd7 {[%emt 0:00:00]} Bh2+ {[%emt 0:00:00]} 49. Kg2 {[%emt 0:00:00]}
Bb8 {[%emt 0:00:00]} 50. Rg7+ {[%emt 0:00:00]} Kf4 {[%emt 0:00:00]} 51. Rg8 {
[%emt 0:00:00]} Bf3+ {[%emt 0:00:00]} 52. Kf2 {[%emt 0:00:00]} Rh2+ {[%emt 0:
00:00]} 53. Kf1 {[%emt 0:01:20]} Rh1+ {[%emt 0:00:00]} 54. Rg1 {[%emt 0:02:21]}
Rh7 {[%emt 0:00:00]} 55. Rf6+ {[%emt 0:00:34]} Ke3 {[%emt 0:00:00]} 56. Rf8 {
[%emt 0:01:46]} Be2+ {[%emt 0:00:00]} 57. Ke1 {[%emt 0:00:23]} Rh1 {[%emt 0:00:
00]} 58. Re8+ {[%emt 0:00:26]} Kf3 {[%emt 0:00:09]} 59. Bd5+ {[%emt 0:00:35]}
1-0

[Event "44th Chess Olympiad Open 2022"]
[Site "Chennai"]
[Date "2022.08.05"]
[Round "7.65"]
[White "Bridet, Robert"]
[Black "Schadler, Martin"]
[Result "1-0"]
[WhiteElo "1497"]
[BlackElo "1939"]
[Annotator "NA"]
[PlyCount "93"]
[EventDate "2022.??.??"]
[TimeControl "60"]

1. e4 {[%emt 0:00:05]} d6 {[%emt 0:00:09]} 2. d4 {[%emt 0:00:32]} g6 {[%emt 0:
00:00]} 3. Nf3 {[%emt 0:00:47]} Bg7 {[%emt 0:00:13]} 4. Be3 {[%emt 0:02:04]} a6
{[%emt 0:00:23]} 5. Nbd2 {[%emt 0:00:52]} Nd7 {[%emt 0:10:35]} 6. c3 {[%emt 0:
00:00]} b6 {[%emt 0:08:53]} 7. Bc4 {[%emt 0:02:25]} b5 {[%emt 0:00:20]} 8. Bd5
{[%emt 0:02:07]} Rb8 {[%emt 0:00:13]} 9. Bxf7+ {[%emt 0:07:12]} Kf8 {[%emt 0:
00:00]} 10. Ng5 {[%emt 0:00:46]} Nb6 {[%emt 0:00:47]} 11. Qf3 {[%emt 0:09:56]}
Nf6 {[%emt 0:01:03]} 12. Ne6+ {[%emt 0:04:20]} Bxe6 {[%emt 0:01:35]} 13. Bxe6 {
[%emt 0:00:15]} Nbd7 {[%emt 0:03:25]} 14. Qf4 {[%emt 0:03:09]} h5 {[%emt 0:00:
00]} 15. Nf3 {[%emt 0:09:07]} Bh6 {[%emt 0:01:22]} 16. Qh4 {[%emt 0:05:49]} Kg7
{[%emt 0:05:21]} 17. e5 {[%emt 0:05:40]} Ng4 {[%emt 0:02:55]} 18. Bg5 {[%emt 0:
00:00]} Bxg5 {[%emt 0:01:54]} 19. Nxg5 {[%emt 0:00:54]} Nh6 {[%emt 0:00:54]}
20. Qh3 {[%emt 0:03:04]} Nf8 {[%emt 0:03:42]} 21. Qf3 {[%emt 0:04:44]} Qe8 {
[%emt 0:00:24]} 22. O-O {[%emt 0:02:21]} Nxe6 {[%emt 0:01:39]} 23. Nxe6+ {
[%emt 0:00:05]} Kh7 {[%emt 0:00:05]} 24. Nxc7 {[%emt 0:01:26]} Qd7 {[%emt 0:00:
00]} 25. exd6 {[%emt 0:02:23]} Qxd6 {[%emt 0:00:23]} 26. Qg3 {[%emt 0:02:51]}
Qc6 {[%emt 0:05:51]} 27. d5 {[%emt 0:02:08]} Qd6 {[%emt 0:01:52]} 28. Qxd6 {
[%emt 0:00:35]} exd6 {[%emt 0:00:11]} 29. Nxa6 {[%emt 0:00:19]} Rbe8 {[%emt 0:
00:00]} 30. Rfe1 {[%emt 0:00:05]} Ng4 {[%emt 0:00:21]} 31. Nc7 {[%emt 0:00:49]}
Rb8 {[%emt 0:02:23]} 32. Re7+ {[%emt 0:00:08]} Kh6 {[%emt 0:00:08]} 33. Rae1 {
[%emt 0:02:04]} Ne5 {[%emt 0:00:44]} 34. f4 {[%emt 0:01:51]} Nd3 {[%emt 0:00:
00]} 35. R1e6 {[%emt 0:01:00]} Nxf4 {[%emt 0:01:53]} 36. Rxd6 {[%emt 0:00:33]}
Nd3 {[%emt 0:01:06]} 37. Ree6 {[%emt 0:01:54]} Rhg8 {[%emt 0:00:32]} 38. Rb6 {
[%emt 0:01:23]} Rbd8 {[%emt 0:00:25]} 39. Rxb5 {[%emt 0:00:37]} Rd7 {[%emt 0:
00:00]} 40. d6 {[%emt 0:00:14]} Rf8 {[%emt 0:00:50]} 41. Rb6 {[%emt 0:34:19]}
Rdf7 {[%emt 0:34:53]} 42. h4 {[%emt 0:02:47]} Rf1+ {[%emt 0:01:41]} 43. Kh2 {
[%emt 0:02:25]} Nf2 {[%emt 0:00:32]} 44. d7 {[%emt 0:01:36]} Ng4+ {[%emt 0:00:
00]} 45. Kg3 {[%emt 0:00:31]} R8f2 {[%emt 0:02:25]} 46. Rxg6+ {[%emt 0:00:35]}
Kh7 {[%emt 0:00:06]} 47. Rxg4 {[%emt 0:00:36]} 1-0

[Event "44th Chess Olympiad Open 2022"]
[Site "Chennai"]
[Date "2022.08.05"]
[Round "7.65"]
[White "Thomas, Larry"]
[Black "Frick, Renato"]
[Result "0-1"]
[WhiteElo "1317"]
[BlackElo "1900"]
[Annotator "NA RC"]
[PlyCount "100"]
[EventDate "2022.??.??"]
[TimeControl "60"]

1. d4 {[%emt 0:00:08]} Nf6 {[%emt 0:00:14]} 2. Nc3 {[%emt 0:00:24]} d5 {
[%emt 0:01:26]} 3. Bf4 {[%emt 0:00:19]} g6 {[%emt 0:00:15]} 4. Qd2 {[%emt 0:00:
00]} c6 {[%emt 0:00:21]} 5. f3 {[%emt 0:04:34]} b5 {[%emt 0:03:26]} 6. Bh6 {
[%emt 0:02:35]} Qa5 {[%emt 0:09:02]} 7. Bxf8 {[%emt 0:01:01]} Rxf8 {[%emt 0:00:
00]} 8. e3 {[%emt 0:01:10]} Nbd7 {[%emt 0:00:24]} 9. Bd3 {[%emt 0:01:28]} e5 {
[%emt 0:05:46]} 10. a3 {[%emt 0:13:06]} Qc7 {[%emt 0:07:03]} 11. Nge2 {[%emt 0:
00:00]} Bb7 {[%emt 0:10:24]} 12. Ng3 {[%emt 0:08:50]} a5 {[%emt 0:04:56]} 13.
O-O {[%emt 0:04:48]} h5 {[%emt 0:07:48]} 14. dxe5 {[%emt 0:07:08]} Nxe5 {
[%emt 0:01:10]} 15. e4 {[%emt 0:06:10]} O-O-O {[%emt 0:03:46]} 16. exd5 {
[%emt 0:05:01]} Nxd5 {[%emt 0:05:21]} 17. Rfe1 {[%emt 0:03:08]} f5 {[%emt 0:00:
00]} 18. Nge2 {[%emt 0:03:30]} Qb6+ {[%emt 0:10:50]} 19. Kh1 {[%emt 0:00:49]}
Ne3 {[%emt 0:02:12]} 20. Nf4 {[%emt 0:02:35]} N3c4 {[%emt 0:10:53]} 21. Qe2 {
[%emt 0:02:29]} Rfe8 {[%emt 0:00:59]} 22. Qf1 {[%emt 0:07:18]} Nxb2 {[%emt 0:
00:00]} 23. Rab1 {[%emt 0:00:35]} Nbxd3 {[%emt 0:00:59]} 24. cxd3 {[%emt 0:00:
00]} Qd4 {[%emt 0:01:02]} 25. Nce2 {[%emt 0:00:38]} Qd6 {[%emt 0:00:44]} 26. d4
{[%emt 0:00:19]} Nc4 {[%emt 0:00:12]} 27. Nd3 {[%emt 0:01:41]} Nd2 {[%emt 0:00:
00]} 28. Qf2 {[%emt 0:00:17]} Nxb1 {[%emt 0:00:20]} 29. Rxb1 {[%emt 0:00:02]}
Qxa3 {[%emt 0:00:23]} 30. Ne5 {[%emt 0:02:09]} Qa2 {[%emt 0:00:57]} 31. Rc1 {
[%emt 0:00:09]} Qb2 {[%emt 0:01:21]} 32. Qe1 {[%emt 0:01:28]} Rxe5 {[%emt 0:00:
00]} 33. dxe5 {[%emt 0:00:03]} Qxe5 {[%emt 0:00:09]} 34. Rc2 {[%emt 0:01:01]}
b4 {[%emt 0:00:41]} 35. Qc1 {[%emt 0:00:02]} Qd5 {[%emt 0:00:15]} 36. Ng1 {
[%emt 0:01:06]} Kc7 {[%emt 0:00:15]} 37. Rc5 {[%emt 0:00:02]} Qd1 {[%emt 0:00:
00]} 38. Qf4+ {[%emt 0:00:15]} Kb6 {[%emt 0:00:10]} 39. Rc1 {[%emt 0:00:46]}
Qd2 {[%emt 0:00:19]} 40. Qc4 {[%emt 0:00:20]} Qd5 {[%emt 0:00:37]} 41. Qe2 {
[%emt 0:30:57]} Ba6 {[%emt 0:30:38]} 42. Qe3+ {[%emt 0:00:13]} Qd4 {[%emt 0:00:
00]} 43. Qe6 {[%emt 0:00:32]} Qd6 {[%emt 0:00:00]} 44. Qe3+ {[%emt 0:00:00]} c5
{[%emt 0:00:00]} 45. Re1 {[%emt 0:00:00]} a4 {[%emt 0:00:00]} 46. Rb1 {[%emt 0:
00:00]} Qd4 {[%emt 0:00:00]} 47. Qe6+ {[%emt 0:00:00]} Rd6 {[%emt 0:00:00]} 48.
Qe8 {[%emt 0:00:00]} a3 {[%emt 0:00:00]} 49. Qa4 {[%emt 0:00:00]} Bb5 {[%emt 0:
00:00]} 50. Qa8 {[%emt 0:00:00]} Rd8 {[%emt 0:00:00]} 0-1